Cogmind - Beta 17 @@@ ROGUE MODE // 2026.08.04 @ 17:35:13 Player: P9H Result: Destroyed by as-88035 with Assembled Blade Performance ------------- Evolutions (0) 0 Regions Visited (2) 400 Robots Destroyed (18) 90 Value Destroyed (239) 239 Prototype IDs (1) 20 Alien Tech Used (0) 0 Bonus (6275) 6275 TOTAL SCORE: 7024 Bonus ------- Follower Combat Kills 25 Prayed to X0-1V1 5000 Major X0-1V1 Interference 1250 Cogmind --------- Core Integrity 0/250 Matter 380/1000 Energy 155/160 System Corruption 2% Temperature Cool (0) Movement Core (250) Ox4 Location -10/Mines Parts ------- > --- POWER (1) -------- Light Nuclear Core > --- PROPULSION (2) --- (None) > --- UTILITY (2) ------ Small Storage Unit X0-1V1's Piety Tracker > --- WEAPON (2) ------- Flail (fused) > --- INVENTORY (8) ---- Carbon-fiber Leg Compact Wheel Flight Unit Heat Sink Improved Heat Sink Small Matter Pod (50) Improved Terrain Scanner Targeting Computer Peak State ------------ > --- POWER ------------ Light Nuclear Core > --- PROPULSION ------- Aluminum Leg Flight Unit > --- UTILITY ---------- Small Storage Unit X0-1V1's Piety Tracker > --- WEAPON ----------- Light Assault Rifle Datajack > --- INVENTORY -------- Aluminum Leg Carbon-fiber Leg Heat Sink Improved Heat Sink Small Matter Pod Improved Terrain Scanner Targeting Computer [Rating: 22] Favorites ----------- Power Light Ion Engine Engine Light Ion Engine Power Core Light Nuclear Core Propulsion Aluminum Leg Leg Aluminum Leg Wheel Wheel Flight Unit Flight Unit Utility Small Storage Unit Device X0-1V1's Piety Tracker Storage Small Storage Unit Weapon Light Assault Rifle Energy Gun EM Pulse Gun Energy Cannon Beam Cannon Ballistic Gun Light Assault Rifle Special Weapon Mining Laser Impact Weapon Flail Special Melee Weapon Datajack Build | -11 -10 -10 ------- Run | Yrd Mat Min Slots Evolved . | . . . Power . | . . . Propulsion . | . . . Utility . | . . . Weapon . | . . . Parts Attached 26 | 7 11 8 Power 5 | 1 2 2 Engine 4 | 1 2 1 Core 1 | . . 1 Reactor . | . . . Propulsion 9 | 2 3 4 Treads . | . . . Leg 4 | . 2 2 Wheel 2 | 2 . . Hover . | . . . Flight 3 | . 1 2 Utility 4 | 2 2 . Device 3 | 1 2 . Storage 1 | 1 . . Processor . | . . . Hackware . | . . . Protection . | . . . Artifact . | . . . Weapon 8 | 2 4 2 Energy Gun 1 | 1 . . Energy Cannon 1 | . 1 . Ballistic Gun 3 | 1 1 1 Ballistic Cannon . | . . . Launcher . | . . . Special Weapon 2 | . 2 . Impact Weapon . | . . . Slashing Weapon . | . . . Piercing Weapon . | . . . Special Melee Weapon 1 | . . 1 Unidentified Prototypes 1 | . 1 . Parts Lost 13 | . 8 5 Power 2 | . 2 . Propulsion 6 | . 4 2 Utility . | . . . Weapon 5 | . 2 3 Highest Loss Streak 4 | . 4 2 To Critical Strikes . | . . . Average Backups 7 | 4 7 7 Power . | . . . Propulsion 3 | 3 3 3 Utility 2 | . 2 4 Weapon . | . . . Tool/Special . | . . . Unused Backups 12 | . 4 8 Power . | . . . Propulsion 7 | . 3 4 Utility 4 | . . 4 Weapon 1 | . 1 . Tool/Special . | . . . Average Slot Usage (%) 89 | . 87 94 Engine 8 | . 11 3 Core 3 | . . 10 Leg 15 | . 14 17 Wheel 6 | . 9 . Flight 2 | . . 7 Device 13 | . 13 14 Storage 14 | . 14 14 Energy Gun 2 | . 4 . Energy Cannon 2 | . 3 . Ballistic Gun 13 | . 13 12 Special Melee Weapon 4 | . . 13 Peak Build Rating 22 | 9 20 22 Average Rating 16 | 4 15 20 On Entrance 9 | . 9 18 Avg Prop Armor Cover (%) 10 | . . 10 Naked Turns . | . . . Heaviest Build 13 | 13 13 13 Greatest Support 26 | 26 26 20 Greatest Overweight (x) 3 | 1 1 3 Average Overweight (x) . | . . . Largest Inventory Capacity 8 | 8 8 8 Average Capacity 7 | 7 8 8 Most Carried 8 | 8 8 8 Average Carried 7 | 5 7 7 Final Capacity 8 | 8 8 8 Final Carried 8 | 8 8 8 Class Distribution -------------------- 89% | Mutant 10% | Scavenger-Mutant Dominant Class ---------------- Mutant | -10/Materials Mutant | -10/Mines Resources | -11 -10 -10 ----------- Run | Yrd Mat Min Matter Collected 670 | 279 215 176 Remotely . | . . . Salvage Created 463 | 72 289 102 Parts 32 | 5 18 9 Haulers Intercepted 1 | . 1 . Recyclers Shooed 2 | . . 2 Parts Field Recycled . | . . . Retrieved Matter . | . . . Parts Self-Destructed . | . . . Prevented . | . . . Parts Restored . | . . . Kills | -11 -10 -10 ------- Run | Yrd Mat Min Combat Hostiles Destroyed 12 | . 11 1 Guns 11 | . 10 1 Cannons 1 | . 1 . Classes Destroyed 7 | 2 5 . Worker 1 | . 1 . Tunneler 1 | 1 . . Hauler 1 | . 1 . Recycler 2 | 1 . 1 Operator 1 | . 1 . Swarmer 10 | . 10 . Grunt 2 | . 1 1 Best Kill Streak 3 | 1 3 1 Combat Bots Only 3 | . 3 1 Max Kills in Single Turn 1 | 1 1 1 Gunslinging . | . . . Exploded . | . . . Melee . | . . . Uniques/NPCs Destroyed . | . . . Combat | -11 -10 -10 -------- Run | Yrd Mat Min Hostile Shots Fired 145 | . 110 35 Missed 40 | . 32 8 Hits 105 | . 78 27 Melee 7 | . . 7 Projectile 98 | . 78 20 AOE 3 | . . 3 Critical Strikes 3 | . . 3 Part Disruptions 1 | . . 1 Damage Taken 1371 | 20 821 530 Core 283 | . 139 144 Absorbed by Shields . | . . . Core Remaining (%) 100 | 100 . . Volleys Fired 61 | 3 46 12 Largest 2 | 2 2 1 Hottest 80 | 60 80 20 Shots Fired 99 | 6 81 12 Gun 86 | 6 68 12 Cannon 13 | . 13 . Launcher . | . . . Special . | . . . Kinetic 72 | 3 57 12 Thermal 13 | . 13 . Explosive . | . . . Electromagnetic 14 | 3 11 . Robot Hit Streak 9 | 3 9 2 Robot Miss Streak 4 | 1 4 2 Penetration Max . | . . . Secondary Targets 1 | . 1 . Max Gunslinging Chain 1 | . 1 . Shots Hit Robots 61 | 4 45 12 Core Hits 25 | 3 19 3 Critical Kills 1 | . . 1 Critical Parts Destroyed . | . . . Critical Strikes 1 | . . 1 Destroy 1 | . . 1 Melee Attacks 19 | . . 19 Impact 7 | . . 7 Slashing . | . . . Piercing . | . . . Sneak Attacks 4 | . . 4 Combat Hostiles . | . . . Follow-up Attacks . | . . . Damage Inflicted 692 | 86 555 51 Guns 515 | 40 428 47 Cannons 106 | . 106 . Explosions 46 | 46 . . Melee . | . . . Ramming 25 | . 21 4 Kinetic 435 | 25 363 47 Thermal 152 | 46 106 . Explosive . | . . . Electromagnetic 80 | 15 65 . Impact . | . . . Slashing . | . . . Piercing . | . . . Highest Corruption 2 | . 2 2 Average Corruption 2 | . 2 2 Corruption Purged . | . . . Corruption Blocked . | . . . Effects 11 | . 3 8 Message Errors 4 | . . 4 Matter Fused 1 | . . 1 Heat Flow Errors 2 | . 1 1 Energy Discharges 3 | . 1 2 Data Loss (major) 1 | . 1 . Overload Shots . | . . . Overflow Damage 52 | . 52 . Projectiles . | . . . Explosions 52 | . 52 . Melee . | . . . Knockbacks . | . . . Impact . | . . . Kinetic . | . . . Secondary . | . . . Self-Inflicted Damage 162 | 20 141 1 Shots 3 | 1 2 . Rammed 2 | . . 2 Targets Rammed 11 | . 8 3 Kicked 9 | . 8 1 Crushed . | . . . Highest Temperature 247 | 12 180 247 Average Temperature 60 | 12 66 55 Received Heat Transfer 371 | . 90 281 Effects 1 | . . 1 Energy Bleed 1 | . . 1 Siege Activations . | . . . Martial Activations . | . . . Shielding Activations . | . . . Robots Disrupted . | . . . Combat Hostiles . | . . . Robots Corrupted . | . . . Combat Hostiles . | . . . Parts Fried . | . . . Impact Corruptions . | . . . Robots Melted . | . . . Combat Hostiles . | . . . Parts Melted 1 | 1 . . Heat Transferred 272 | 50 222 . Parts Sabotaged . | . . . Parts Stolen . | . . . Parts Stripped . | . . . Power Chain Reactions 1 | 1 . . Alert | -11 -10 -10 ------- Run | Yrd Mat Min Maximum Alert Level . | . . . Low Security (%) 100 | 100 100 100 Level 1 . | . . . Level 2 . | . . . Level 3 . | . . . Level 4 . | . . . Level 5 . | . . . High Security . | . . . Max Security . | . . . Peak Influence 70 | 5 70 30 Initial 1 | . . 1 Average 17 | 1 25 4 Influence Increases 453 | 10 357 86 Destroy 0b10 Robot/C 260 | . 220 40 Destroy 0b10 Robot/NC 30 | 10 15 5 Destroy Leader 42 | . 32 10 Allied During Kill 1 | . . 1 Successful Hack 12 | . 12 . Disable Machine 30 | . 30 . Destroy Structure 18 | . 18 . Partial Spotted 15 | . . 15 Lose Combat Pursuer 45 | . 30 15 Influence Decreases 453 | 10 351 92 Entered New Map 5 | . . 5 Time Decay 354 | 10 279 65 Lost Part 78 | . 72 6 Lost Ally 16 | . . 16 Squads Dispatched 3 | . 3 . Investigation . | . . . Extermination . | . . . Reinforcement 3 | . 3 . Assault . | . . . Garrison . | . . . Intercept . | . . . Searches Triggered . | . . . Construction Impeded . | . . . Haulers Reinforced . | . . . Active Scanning Responses . | . . . Cargo Convoy Interrupts . | . . . Stealth | -11 -10 -10 --------- Run | Yrd Mat Min Distress Signals . | . . . Communications Jammed . | . . . Distress Signals . | . . . Times Spotted 48 | . 29 19 Peak Tracking Total 8 | . 5 8 Tactical Retreats 4 | . 2 2 Traps | -11 -10 -10 ------- Run | Yrd Mat Min Traps Triggered 2 | . 2 . Indirectly . | . . . Trap Hack Attempts . | . . . Triggered . | . . . Disarmed . | . . . Reprogrammed . | . . . Reused . | . . . Traps Extracted . | . . . Installed . | . . . Triggered . | . . . Machines | -11 -10 -10 ---------- Run | Yrd Mat Min Machines Disabled 2 | . 2 . Max in Single Turn 2 | . 2 . Machines Repaired . | . . . Machines Dismantled . | . . . Machines Sabotaged . | . . . Overloaded Fab Kills . | . . . Hacking | -11 -10 -10 --------- Run | Yrd Mat Min Machines Accessed 1 | . 1 . Terminals 1 | . 1 . Fabricators . | . . . Repair Stations . | . . . Recycling Units . | . . . Scanalyzers . | . . . Garrison Access . | . . . Total Hacks 1 | . 1 . Successful 1 | . 1 . Failed . | . . . Catastrophic . | . . . Database Lockouts . | . . . Manual 2 | . 2 . Terminals 1 | . 1 . Fabricators . | . . . Repair Stations . | . . . Recycling Units . | . . . Scanalyzers . | . . . Garrison Access . | . . . Terminal Hacks 1 | . 1 . Record 1 | . 1 . Fabricator Hacks . | . . . Repair Station Hacks . | . . . Recycling Unit Hacks . | . . . Scanalyzer . | . . . Garrison Access Hacks . | . . . Unauthorized Hacks . | . . . Terminals . | . . . Fabricators . | . . . Repair Stations . | . . . Recycling Units . | . . . Scanalyzers . | . . . Garrison Access . | . . . Data Cores Recovered 1 | . 1 . Used . | . . . Hacking Detections 1 | . 1 . Full Trace Events . | . . . Feedback Events . | . . . Feedback Blocked . | . . . Robot Schematics Acquired . | . . . Robots Built . | . . . Authchips . | . . . Time . | . . . Total Robot Build Rating . | . . . Part Schematics Acquired . | . . . Parts Built . | . . . Authchips . | . . . Time . | . . . Total Part Build Rating . | . . . Part Studies Acquired . | . . . Parts Repaired . | . . . Time . | . . . Parts Recycled . | . . . Recycled Matter . | . . . Retrieved Matter . | . . . Retrieved Components . | . . . Parts Scanalyzed . | . . . Part Schematics Acquired . | . . . Parts Damaged . | . . . Bothacking | -11 -10 -10 ------------ Run | Yrd Mat Min Used RIF Installer . | . . . Robots Hacked 2 | . . 2 Non-combat 1 | . . 1 Combat 1 | . . 1 Robot Hacks Applied 2 | . . 2 parse_system 1 | . . 1 no_distress 1 | . . 1 Relay Couplers Released . | . . . Fabnet Peak Effective % . | . . . Robots Rewired . | . . . Allies Hacked . | . . . Hacks Repelled . | . . . Allies | -11 -10 -10 -------- Run | Yrd Mat Min Total Allies 1 | . . 1 Largest Group 1 | . . 1 Highest-Rated Group 31 | . . 31 Highest-Rated Ally 31 | . . 31 Total Orders . | . . . Ally Attacks 6 | . . 6 Total Damage 102 | . . 102 Kills 1 | . . 1 Allies Corrupted . | . . . Allies Melted . | . . . X0-1V1 Amusement Gains 102 | . 10 92 Good Acts 5 | . 1 4 Bad Acts 4 | . 4 . Intel | -11 -10 -10 ------- Run | Yrd Mat Min Active Infowar (turns) 181 | 11 170 . Terrain 181 | 11 170 . Robot Analysis Total . | . . . Derelict Logs Recovered 2 | . . 2 Drone Launches . | . . . Drone Recoveries . | . . . Exploration | -11 -10 -10 ------------- Run | Yrd Mat Min Turns Passed 1265 | 87 765 413 Spaces Moved 764 | 65 500 199 Core 31 | 13 18 . Treads . | . . . Legs 437 | . 307 130 Wheels 209 | 52 157 . Hover . | . . . Flight 87 | . 18 69 Fastest Speed 50 | 50 90 117 Average Speed 116 | 83 109 143 Slowest Speed 280 | 95 120 280 Overloaded Moves . | . . . Propulsion Burnouts . | . . . Robots Hopped . | . . . Potential Cave-ins . | . . . Cave-ins Triggered . | . . . Exploration Rate (%) 42 | 3 73 50 Regions Visited 2 Branch Regions 1 Pre-discovered Areas 3 | . . 3 Known Exits Taken . | . . . Unknown Exits Taken 2 | 1 1 . Scrap Searched . | . . . Spaces Dug . | . . . Terrain Destroyed 22 | 5 17 . Melee . | . . . Projectile . | . . . AOE 22 | 5 17 . Terrain Rammed . | . . . Walls Destroyed . | . . . Machines Disabled . | . . . Actions | -11 -10 -10 --------- Run | Yrd Mat Min Total 1032 | 91 638 303 Wait 113 | 3 61 49 Move 762 | 64 499 199 Hop . | . . . Pick Up 28 | 14 8 6 Fast Attach 7 | 1 4 2 Attach 14 | 6 4 4 Detach 1 | . . 1 Swap 5 | . 3 2 Drop 11 | . 5 6 Fire 61 | 3 46 12 Melee 19 | . . 19 Ram 2 | . . 2 Kick 9 | . 8 1 Crush . | . . . Escape Stasis . | . . . Rewire . | . . . Trap . | . . . Miscellaneous . | . . . Route ------- -11/Scrapyard -10/Materials (discovered 4 exits: [*Mat] / [*Min x2] / *Sub) -10/Mines (discovered 1 exit: Sub) History --------- Turn | Location | Event 16 | -11/Scrapyard | Discovered new exit (range 15) 88 | -11/Scrapyard | Entered Materials 246 | -10/Materials | Discovered new exit (range 6) 252 | -10/Materials | Prayed at D.C.S.S. Altar Unit 317 | -10/Materials | Build established: Mutant 376 | -10/Materials | Lost 4 parts (1p2n1w) 417 | -10/Materials | Discovered new exit (range 8) 425 | -10/Materials | X0-1V1 sent you into danger 493 | -10/Materials | X0-1V1 announced a LAN party 546 | -10/Materials | Discovered new exit (range 16) 665 | -10/Materials | X0-1V1 sent hostile S-10 Pest (x3) 743 | -10/Materials | Lost 3 parts (1p1n1w) 820 | -10/Materials | Discovered new exit (range 12) 840 | -10/Materials | Core integrity fell below 50% 853 | -10/Materials | Entered Mines 864 | -10/Mines | Escorted by a lone wolf Derelict 884 | -10/Mines | Learned location of Storage (-7) 912 | -10/Mines | Learned location of Zion (-7) 1054 | -10/Mines | Assembled infested the area 1055 | -10/Mines | Identified exit to Subcaves 1055 | -10/Mines | X0-1V1 revealed exit location to -10/Subcaves 1059 | -10/Mines | Assisted by a Guerilla fighting off Assembled 1113 | -10/Mines | X0-1V1 whisked you away to safety 1259 | -10/Mines | Core integrity fell below 20% 1266 | -10/Mines | Destroyed by as-88035 with Assembled Blade Last Messages --------------- 01071_ Sight range returns to normal. 01072_ K-01 Serf collects debris. 01086_ System corrupted: Energy discharge (-46). 01113_ X0-1V1: "You need a change of scenery." 01115_ Sneak attack on K-01 Serf. 01115_ Jacked K-01 Serf... >>find_chute No applicable chute records found in memory. 01125_ Kicked K-01 Serf out of the way. 01246_ Jacked as-88035... 01246_ Command string: self_destruct 01246_ No effect. 01246_ Aluminum Leg destroyed. 01250_ Dropped Datajack. 01251_ X0-1V1 ensures you are ready for glorious battle (+Flail). 01251_ Lgt. Assault Rifle destroyed. 01259_ Aluminum Leg severed. 01263_ KAIWPUG QT|